[Event "Spring NYC Norms GM-A 2025"]
[Site "New York"]
[Date "2025.03.30"]
[Round "6.1"]
[White "Gauri, Shankar"]
[Black "Barbosa, Oliver"]
[Result "1/2-1/2"]
[Annotator "RC"]
[ECO "A30"]
[WhiteElo "2348"]
[BlackElo "2425"]
[PlyCount "32"]
[EventDate "2025.03.26"]
[EventType "tourn"]
[EventCountry "USA"]
[SourceTitle "playchess.com"]
[Source "ChessBase"]
[SourceQuality "1"]
[TimeControl "5400+30"]

1. Nf3 {[%emt 1:31:00]} Nf6 {[%emt 0:09:04]} 2. g3 {[%emt 0:00:00]} b6 {[%emt 0:01:16]} 3. Bg2 {[%emt 0:00:00]} Bb7 {[%emt 0:00:07]} 4. O-O {[%emt 0:00:00]} e6 {[%emt 0:00:31]} 5. c4 {[%emt 0:00:00]} c5 {[%emt 0:01:27]} 6. d4 {[%emt 0:00:00]} cxd4 {[%emt 0:00:11]} 7. Qxd4 {[%emt 0:00:00]} Be7 {[%emt 0:00:56]} 8. Nc3 {[%emt 0:00:00]} d6 {[%emt 0:00:16]} 9. Bg5 {[%emt 0:00:00]} O-O {[%emt 0:11:29]} 10. Rfd1 {[%emt 0:00:00]} Nbd7 {[%emt 0:04:44]} 11. Nb5 {[%emt 0:00:00]} d5 {[%emt 0:01:27]} 12. cxd5 {[%emt 0:00:00]} Bxd5 {[%emt 0:12:11]} 13. Nc3 {[%emt 0:00:00]} Bc6 {[%emt 0:01:09]} 14. Ne5 {[%emt 0:00:00]} Bxg2 {[%emt 0:04:44]} 15. Nxd7 {[%emt 0:00:00]} Nxd7 {[%emt 0:00:37]} 16. Qxd7 {[%emt 0:00:00]} Bxg5 {[%emt 0:03:34]} 1/2-1/2

[Event "Spring NYC Norms GM-A 2025"]
[Site "New York"]
[Date "2025.03.30"]
[Round "6.1"]
[White "Lin, Bryan Enming"]
[Black "Johnson, Donald"]
[Result "*"]
[Annotator "RC"]
[ECO "A30"]
[WhiteElo "2326"]
[BlackElo "2326"]
[PlyCount "26"]
[EventDate "2025.03.26"]
[EventType "tourn"]
[EventCountry "USA"]
[SourceTitle "playchess.com"]
[Source "ChessBase"]
[SourceQuality "1"]
[TimeControl "5400+30"]

1. Nf3 {[%emt 1:31:00]} Nf6 {[%emt 0:09:04]} 2. g3 {[%emt 0:00:30]} b6 {[%emt 1:22:26]} 3. Bg2 {[%emt 0:00:00]} Bb7 {[%emt 0:00:07]} 4. O-O {[%emt 0:00:00]} e6 {[%emt 0:00:31]} 5. c4 {[%emt 0:02:00]} c5 {[%emt 0:01:27]} 6. d4 {[%emt 0:00:00]} cxd4 {[%emt 0:00:11]} 7. Qxd4 {[%emt 0:00:00]} Be7 {[%emt 0:00:56]} 8. Nc3 {[%emt 0:00:00]} d6 {[%emt 1:20:58]} 9. Bg5 {[%emt 0:00:00]} O-O {[%emt 0:11:29]} 10. Rfd1 {[%emt 0:00:00]} Nbd7 {[%emt 0:04:44]} 11. Nb5 {[%emt 0:00:00]} d5 {[%emt 0:01:27]} 12. cxd5 {[%emt 0:00:00]} Bxd5 {[%emt 0:12:11]} 13. Nc3 {[%emt 0:00:00]} Bc6 {[%emt 0:01:09]} *

[Event "Spring NYC Norms GM-A 2025"]
[Site "New York"]
[Date "2025.03.30"]
[Round "6.2"]
[White "Raja Harshit"]
[Black "Sheehan, Ethan"]
[Result "*"]
[Annotator "RC"]
[ECO "B22"]
[WhiteElo "2474"]
[BlackElo "2363"]
[PlyCount "25"]
[EventDate "2025.03.26"]
[EventType "tourn"]
[EventCountry "USA"]
[SourceTitle "playchess.com"]
[Source "ChessBase"]
[SourceQuality "1"]
[TimeControl "5400+30"]

1. e4 {[%emt 0:01:05]} c5 {[%emt 0:00:05]} 2. Nf3 {[%emt 1:30:25]} e6 {[%emt 0:00:05]} 3. c3 {[%emt 0:00:10]} Nf6 {[%emt 0:00:26]} 4. e5 {[%emt 0:00:08]} Nd5 {[%emt 0:00:04]} 5. a3 {[%emt 0:00:30]} d6 {[%emt 0:00:18]} 6. d4 {[%emt 0:00:35]} cxd4 {[%emt 0:00:04]} 7. c4 {[%emt 0:00:13]} Nb6 {[%emt 0:36:05]} 8. Bg5 {[%emt 0:01:23]} Be7 {[%emt 0:57:23]} 9. Bxe7 {[%emt 0:00:19]} Qxe7 {[%emt 0:00:01]} 10. exd6 {[%emt 0:07:41]} Qxd6 {[%emt 0:00:02]} 11. Qxd4 {[%emt 0:00:12]} Qxd4 {[%emt 0:00:19]} 12. Nxd4 {[%emt 0:00:01]} Ke7 {[%emt 0:07:23]} 13. Nc3 {[%emt 0:21:53]} *

[Event "Spring NYC Norms GM-A 2025"]
[Site "New York"]
[Date "2025.03.30"]
[Round "6.2"]
[White "Putnam, Liam"]
[Black "Adewumi, Tanitoluwa"]
[Result "1-0"]
[Annotator "RC"]
[ECO "B22"]
[WhiteElo "2411"]
[BlackElo "2362"]
[PlyCount "107"]
[EventDate "2025.03.26"]
[EventType "tourn"]
[EventCountry "USA"]
[SourceTitle "playchess.com"]
[Source "ChessBase"]
[SourceQuality "1"]
[TimeControl "5400+30"]

1. e4 {[%emt 0:01:05]} c5 {[%emt 0:00:05]} 2. Nf3 {[%emt 0:00:13]} e6 {[%emt 0:00:05]} 3. c3 {[%emt 0:00:10]} Nf6 {[%emt 0:00:26]} 4. e5 {[%emt 0:00:08]} Nd5 {[%emt 0:00:04]} 5. a3 {[%emt 0:00:30]} d6 {[%emt 0:00:18]} 6. d4 {[%emt 0:00:35]} cxd4 {[%emt 0:00:04]} 7. c4 {[%emt 0:00:13]} Nb6 {[%emt 0:36:05]} 8. Bg5 {[%emt 0:01:23]} Be7 {[%emt 0:03:43]} 9. Bxe7 {[%emt 0:00:19]} Qxe7 {[%emt 0:00:01]} 10. exd6 {[%emt 0:07:41]} Qxd6 {[%emt 0:00:02]} 11. Qxd4 {[%emt 0:00:12]} Qxd4 {[%emt 0:00:19]} 12. Nxd4 {[%emt 0:00:01]} Ke7 {[%emt 0:07:23]} 13. Nc3 {[%emt 0:21:53]} Rd8 {[%emt 0:07:45]} 14. O-O-O {[%emt 0:02:51]} a5 {[%emt 0:24:45]} 15. c5 {[%emt 0:03:51]} Nd5 {[%emt 0:03:24]} 16. Nf5+ {[%emt 0:01:39]} Kf6 {[%emt 0:00:19]} 17. Ne3 {[%emt 0:00:50]} Nc6 {[%emt 0:02:35]} 18. Nexd5+ {[%emt 0:00:23]} exd5 {[%emt 0:00:07]} 19. Nxd5+ {[%emt 0:00:05]} Kg5 {[%emt 0:00:10]} 20. Bb5 {[%emt 0:02:07]} Bf5 {[%emt 0:04:10]} 21. h4+ {[%emt 0:00:24]} Kh6 {[%emt 0:00:09]} 22. Bxc6 {[%emt 0:10:14]} bxc6 {[%emt 0:00:03]} 23. Ne7 {[%emt 0:00:04]} Be6 {[%emt 0:00:21]} 24. Rxd8 {[%emt 0:00:13]} Rxd8 {[%emt 0:00:01]} 25. Rd1 {[%emt 0:00:11]} Rb8 {[%emt 0:02:03]} 26. Nxc6 {[%emt 0:00:23]} Rc8 {[%emt 0:01:51]} 27. Rd6 {[%emt 0:00:04]} a4 {[%emt 0:00:15]} 28. Kd2 {[%emt 0:01:55]} Kh5 {[%emt 0:00:06]} 29. Kc3 {[%emt 0:00:11]} Kxh4 {[%emt 0:00:08]} 30. Kd4 {[%emt 0:00:04]} Kg4 {[%emt 0:00:41]} 31. Nb4 {[%emt 0:00:24]} g5 {[%emt 0:00:21]} 32. c6 {[%emt 0:00:02]} h5 {[%emt 0:00:14]} 33. Nd5 {[%emt 0:00:48]} h4 {[%emt 0:00:18]} 34. Nb6 {[%emt 0:00:06]} Rc7 {[%emt 0:00:04]} 35. Kc5 {[%emt 0:00:07]} Kh5 {[%emt 0:01:00]} 36. Rd4 {[%emt 0:01:49]} Ra7 {[%emt 0:01:02]} 37. f3 {[%emt 0:11:12]} g4 {[%emt 0:01:47]} 38. fxg4+ {[%emt 0:00:02]} Bxg4 {[%emt 0:02:03]} 39. Nd7 {[%emt 0:00:01]} Kg5 {[%emt 0:00:26]} 40. Kb6 {[%emt 0:00:04]} Ra8 {[%emt 0:00:08]} 41. c7 {[%emt 0:00:04]} Rh8 {[%emt 0:01:08]} 42. Kb7 {[%emt 0:00:15]} f5 {[%emt 0:00:13]} 43. Ne5 {[%emt 0:00:15]} Rh7 {[%emt 0:00:31]} 44. Nxg4 {[%emt 0:00:33]} fxg4 {[%emt 0:00:08]} 45. Kb8 {[%emt 0:00:06]} Rh8+ {[%emt 0:00:05]} 46. Rd8 {[%emt 0:00:03]} Rh6 {[%emt 0:00:32]} 47. c8=Q {[%emt 0:00:06]} Rb6+ {[%emt 0:00:05]} 48. Ka7 {[%emt 0:00:03]} Rxb2 {[%emt 0:00:06]} 49. Qc5+ {[%emt 0:00:05]} Kf4 {[%emt 0:00:05]} 50. Qd4+ {[%emt 0:00:03]} Kg3 {[%emt 0:00:06]} 51. Qxb2 {[%emt 0:00:05]} Kh2 {[%emt 0:00:05]} 52. g3+ {[%emt 0:00:07]} Kh3 {[%emt 0:00:13]} 53. Qf2 {[%emt 0:00:14]} hxg3 {[%emt 0:00:07]} 54. Rh8# {[%emt 0:00:33]} 1-0

[Event "Spring NYC Norms GM-A 2025"]
[Site "New York"]
[Date "2025.03.30"]
[Round "6.3"]
[White "Paragua, Mark"]
[Black "Stearman, Josiah"]
[Result "*"]
[Annotator "RC"]
[ECO "B90"]
[WhiteElo "2439"]
[BlackElo "2441"]
[PlyCount "41"]
[EventDate "2025.03.26"]
[EventType "tourn"]
[EventCountry "USA"]
[SourceTitle "playchess.com"]
[Source "ChessBase"]
[SourceQuality "1"]
[TimeControl "5400+30"]

1. e4 {[%emt 0:00:03]} c5 {[%emt 0:00:06]} 2. Nf3 {[%emt 0:00:06]} d6 {[%emt 0:00:27]} 3. d4 {[%emt 0:00:07]} cxd4 {[%emt 0:00:04]} 4. Nxd4 {[%emt 0:00:06]} Nf6 {[%emt 0:00:04]} 5. Nc3 {[%emt 0:00:07]} a6 {[%emt 0:00:00]} 6. h3 {[%emt 0:00:11]} e5 {[%emt 0:00:30]} 7. Nb3 {[%emt 0:00:12]} Be6 {[%emt 0:00:17]} 8. f4 {[%emt 0:00:23]} b5 {[%emt 0:00:33]} 9. f5 {[%emt 0:00:30]} Bc8 {[%emt 0:00:05]} 10. Bg5 {[%emt 0:00:44]} Nbd7 {[%emt 0:01:10]} 11. Qf3 {[%emt 0:01:38]} Be7 {[%emt 0:01:44]} 12. a4 {[%emt 0:12:47]} b4 {[%emt 0:01:52]} 13. Bxf6 {[%emt 0:00:27]} Nxf6 {[%emt 0:00:10]} 14. Nd5 {[%emt 0:00:18]} Nxd5 {[%emt 0:07:11]} 15. exd5 {[%emt 0:00:26]} O-O {[%emt 0:01:34]} 16. O-O-O {[%emt 0:01:08]} Qd7 {[%emt 0:02:01]} 17. Bd3 {[%emt 0:06:41]} Qxa4 {[%emt 0:00:30]} 18. Qe4 {[%emt 0:01:54]} f6 {[%emt 0:13:37]} 19. Kd2 {[%emt 0:06:56]} Rb8 {[%emt 0:06:10]} 20. Ra1 {[%emt 0:01:16]} Qd7 {[%emt 0:00:02]} 21. g4 {[%emt 0:02:57]} *

[Event "Spring NYC Norms GM-A 2025"]
[Site "New York"]
[Date "2025.03.30"]
[Round "6.3"]
[White "Lin, Bryan Enming"]
[Black "Johnson, Donald"]
[Result "0-1"]
[Annotator "RC"]
[ECO "B90"]
[WhiteElo "2326"]
[BlackElo "2326"]
[PlyCount "118"]
[EventDate "2025.03.26"]
[EventType "tourn"]
[EventCountry "USA"]
[SourceTitle "playchess.com"]
[Source "ChessBase"]
[SourceQuality "1"]
[TimeControl "5400+30"]

1. e4 {[%emt 0:00:03]} c5 {[%emt 0:00:06]} 2. Nf3 {[%emt 0:00:06]} d6 {[%emt 0:00:27]} 3. d4 {[%emt 0:00:07]} cxd4 {[%emt 0:00:04]} 4. Nxd4 {[%emt 0:00:06]} Nf6 {[%emt 0:00:04]} 5. Nc3 {[%emt 0:00:07]} a6 {[%emt 0:00:00]} 6. h3 {[%emt 0:00:11]} e5 {[%emt 0:00:30]} 7. Nb3 {[%emt 0:00:12]} Be6 {[%emt 0:00:17]} 8. f4 {[%emt 0:00:23]} b5 {[%emt 0:00:33]} 9. f5 {[%emt 0:00:30]} Bc8 {[%emt 0:00:05]} 10. Bg5 {[%emt 0:00:44]} Nbd7 {[%emt 0:01:10]} 11. Qf3 {[%emt 0:01:38]} Be7 {[%emt 0:01:44]} 12. a4 {[%emt 0:12:47]} b4 {[%emt 0:01:52]} 13. Bxf6 {[%emt 0:00:27]} Nxf6 {[%emt 0:00:10]} 14. Nd5 {[%emt 0:00:18]} Nxd5 {[%emt 0:07:11]} 15. exd5 {[%emt 0:00:26]} O-O {[%emt 0:01:34]} 16. O-O-O {[%emt 0:01:08]} Qd7 {[%emt 0:02:01]} 17. Bd3 {[%emt 0:06:41]} Qxa4 {[%emt 0:00:30]} 18. Qe4 {[%emt 0:01:54]} f6 {[%emt 0:13:37]} 19. Kd2 {[%emt 0:06:56]} Rb8 {[%emt 0:06:10]} 20. Ra1 {[%emt 0:01:16]} Qd7 {[%emt 0:00:02]} 21. g4 {[%emt 0:02:57]} Bd8 {[%emt 0:11:21]} 22. Na5 {[%emt 0:02:44]} Bxa5 {[%emt 0:02:32]} 23. Rxa5 {[%emt 0:00:05]} Qa7 {[%emt 0:02:29]} 24. Qe3 {[%emt 0:01:49]} Qc7 {[%emt 0:00:09]} 25. Rha1 {[%emt 0:01:49]} Bb7 {[%emt 0:04:46]} 26. Be4 {[%emt 0:10:47]} Rfc8 {[%emt 0:02:57]} 27. R5a4 {[%emt 0:01:40]} Qc4 {[%emt 0:02:51]} 28. b3 {[%emt 0:08:35]} Qb5 {[%emt 0:02:43]} 29. Ra5 {[%emt 0:00:48]} Qd7 {[%emt 0:00:27]} 30. R5a4 {[%emt 0:00:51]} Qb5 {[%emt 0:01:20]} 31. Ra5 {[%emt 0:00:26]} Qd7 {[%emt 0:00:02]} 32. h4 {[%emt 0:01:13]} Rc3 {[%emt 0:11:05]} 33. Qb6 {[%emt 0:01:56]} Rg3 {[%emt 0:01:32]} 34. R1a4 {[%emt 0:09:06]} Qc8 {[%emt 0:03:22]} 35. Qxb4 {[%emt 0:01:48]} Qc7 {[%emt 0:03:37]} 36. g5 {[%emt 0:07:59]} fxg5 {[%emt 0:09:53]} 37. hxg5 {[%emt 0:00:21]} Rxg5 {[%emt 0:00:41]} 38. Kc1 {[%emt 0:01:29]} Bc8 {[%emt 0:01:04]} 39. Qd2 {[%emt 0:01:36]} Qe7 {[%emt 0:00:29]} 40. Rb4 {[%emt 0:02:05]} Rxb4 {[%emt 0:02:30]} 41. Qxb4 {[%emt 0:00:09]} Bxf5 {[%emt 0:01:50]} 42. Rxa6 {[%emt 0:01:43]} h5 {[%emt 0:00:32]} 43. Kb2 {[%emt 0:05:00]} h4 {[%emt 0:01:35]} 44. Ra4 {[%emt 0:01:36]} Qf6 {[%emt 0:02:11]} 45. Bxf5 {[%emt 0:01:50]} e4+ {[%emt 0:00:01]} 46. Ka2 {[%emt 0:00:56]} Qxf5 {[%emt 0:00:46]} 47. Ra8+ {[%emt 0:01:26]} Kh7 {[%emt 0:00:01]} 48. Qb8 {[%emt 0:00:13]} Qxd5 {[%emt 0:02:20]} 49. Qh8+ {[%emt 0:00:16]} Kg6 {[%emt 0:01:47]} 50. Qe8+ {[%emt 0:01:05]} Kh7 {[%emt 0:00:00]} 51. Qh8+ {[%emt 0:00:07]} Kg6 {[%emt 0:00:00]} 52. Qe8+ {[%emt 0:00:23]} Kf5 {[%emt 0:00:00]} 53. Qd7+ {[%emt 0:00:33]} Kf4 {[%emt 0:00:19]} 54. Ra6 {[%emt 0:01:44]} Qd2 {[%emt 0:01:20]} 55. Kb2 {[%emt 0:01:34]} Qd4+ {[%emt 0:00:18]} 56. Ka2 {[%emt 0:00:07]} Qd2 {[%emt 0:00:16]} 57. Kb2 {[%emt 0:00:10]} Qd4+ {[%emt 0:00:01]} 58. Ka2 {[%emt 0:00:13]} Rg1 {[%emt 0:00:58]} 59. Qf7+ {[%emt 0:00:20]} Qf6 {[%emt 0:00:27]} 0-1

[Event "Spring NYC Norms GM-A 2025"]
[Site "New York"]
[Date "2025.03.30"]
[Round "6.4"]
[White "Raja Harshit"]
[Black "Sheehan, Ethan"]
[Result "1/2-1/2"]
[Annotator "TA"]
[ECO "C72"]
[WhiteElo "2474"]
[BlackElo "2363"]
[PlyCount "93"]
[EventDate "2025.03.26"]
[EventType "tourn"]
[EventCountry "USA"]
[SourceTitle "playchess.com"]
[Source "ChessBase"]
[SourceQuality "1"]
[TimeControl "5400+30"]

{[%evp 10,93,43,14,25,31,28,27,38,29,38,36,34,38,54,0,35,37,41,40,34,35,31,34,29,36,42,46,50,39,54,48,51,69,61,0,48,41,49,0,8,0,0,0,2,-7,-12,-2,39,0,9,3,6,0,10,-3,0,0,0,0,0,0,0,-1,0,0,10,0,0,0,0,0,0,0,0,0,0,0,0,0,0,0,0,0,0,0]} 1. e4 {[%emt 0:18:10]} e5 {[%emt 0:00:01]} 2. Nf3 {[%emt 0:00:09]} Nc6 {[%emt 0:00:02]} 3. Bb5 {[%emt 0:00:09]} a6 {[%emt 0:00:03]} 4. Ba4 {[%emt 0:00:09]} d6 {[%emt 0:00:00]} 5. O-O {[%emt 0:00:00]} Bd7 {[%emt 0:00:00]} 6. c4 {[%emt 0:00:37]} Bg4 {[%emt 0:00:00] C72: Ruy Lopez: Deferred Steinitz: 5 0-0.} 7. h3 {[%emt 0:00:16]} Bxf3 {[%emt 0:00:00]} 8. Qxf3 {[%emt 0:00:06]} Nf6 {[%emt 0:00:00][%cal Bg8f6,Bf6d7,Bd7c5][%mdl 32] White has an edge.} 9. Qb3 $146 {[%emt 0:00:22]} (9. d3 Nd7 10. Be3 g6 11. Nc3 Bg7 12. Bxc6 bxc6 13. b4 Nf8 14. a4 Ne6 15. b5 {½-½ Shuvalova,P (2483)-Stefanova,A (2413) Belt and Road Shaoxing 6th 2024 (6)}) 9... Qc8 {[%emt 0:01:35][%cal Og7g6]} 10. Nc3 {[%emt 0:00:44][%cal Od2d4]} Nd7 {[%emt 0:05:11]} 11. d3 {[%emt 0:00:18]} Be7 {[%emt 0:04:35]} 12. Nd5 {[%emt 0:00:19]} ({White should try} 12. Be3 $14) 12... Nc5 {[%emt 0:00:47]} 13. Qd1 {[%emt 0:00:12]} Qd7 {[%emt 0:01:30]} 14. f4 {[%emt 0:00:51]} exf4 {[%emt 0:00:45]} 15. Bxf4 {[%emt 0:00:12]} O-O {[%emt 0:00:37]} 16. Be3 {[%emt 0:02:39]} Nxa4 {[%emt 0:05:48]} 17. Qxa4 {[%emt 0:00:07]} Rae8 {[%emt 0:00:02]} 18. Rad1 {[%emt 0:00:02]} Bd8 {[%emt 0:00:36]} 19. c5 {[%emt 0:00:02]} Be7 {[%emt 0:08:46]} 20. Rc1 {[%emt 0:01:55]} Rd8 {[%emt 0:03:11]} 21. Qb3 {[%emt 0:01:37]} Rb8 {[%emt 0:00:01]} 22. Qa4 {[%emt 0:10:02] White has more active pieces.} Rbd8 {[%emt 0:00:21]} 23. Bf4 {[%emt 0:02:03]} Kh8 {[%emt 0:03:03]} 24. Qb3 {[%emt 0:19:11]} (24. Qc4 dxc5 25. Bxc7 Rde8 26. Nxe7 Rxe7 27. Bb6) 24... Nd4 {[%emt 0:04:13]} 25. Qxb7 {[%emt 0:05:26] [#]} (25. Qd1 {simplifies} Ne6 26. Nxe7 Qxe7 27. cxd6 cxd6 28. Bd2) 25... Ne2+ {[%emt 0:00:07]} 26. Kh1 {[%emt 0:01:25] Threatens to win with c6.} dxc5 {[%emt 0:00:02]} ({And not} 26... Nxc1 27. c6 Qe6 28. Rxc1 $18 (28. Bxc1 Bh4 $16)) 27. Rc2 {[%emt 0:02:56]} Nxf4 {[%emt 0:00:03]} 28. Nxf4 {[%emt 0:02:14]} c6 {[%emt 0:13:08] Black is weak on the light squares} 29. Qxd7 {[%emt 0:04:55]} Rxd7 {[%emt 0:00:01] The position is equal.} 30. Rf3 {[%emt 0:01:34]} Rfd8 {[%emt 0:00:13]} 31. Rc3 {[%emt 0:00:28]} Bd6 {[%emt 0:01:59]} 32. g3 {[%emt 0:02:30]} g6 {[%emt 0:01:29]} 33. Kg2 {[%emt 0:02:00]} Kg7 {[%emt 0:00:01]} 34. b3 {[%emt 0:03:29]} h5 {[%emt 0:00:07]} 35. h4 {[%emt 0:00:54]} a5 {[%emt 0:00:01][%cal Oa5a4]} 36. Ne2 {[%emt 0:00:47]} f6 {[%emt 0:01:35]} 37. Rc4 {[%emt 0:03:48]} Be5 {[%emt 0:01:33]} 38. Nc1 {[%emt 0:01:11]} Bb2 {[%emt 0:00:53]} 39. Rxc5 {[%emt 0:02:54]} Bxc1 {[%emt 0:00:03]} 40. Rxc1 {[%emt 0:00:03]} Rxd3 {[%emt 0:00:05]} 41. Rxc6 $11 {[%emt 0:00:06][%mdl 4096] Endgame KRR-KRR. White is a pawn up.} Rd2+ {[%emt 0:00:03]} 42. Rf2 {[%emt 0:00:03]} Rxf2+ {[%emt 0:00:04]} 43. Kxf2 {[%emt 0:00:05]} Rd2+ {[%emt 0:00:03]} 44. Ke3 {[%emt 0:00:03]} Rxa2 {[%emt 0:00:05]} 45. Rc7+ {[%emt 0:00:04]} Kf8 {[%emt 0:00:30]} 46. Kd4 {[%emt 0:00:12]} Rg2 {[%emt 0:01:34]} 47. Rc3 {[%emt 0:01:59] Weighted Error Value: White=0.09 (flawless) /Black=0.05 (flawless)   Mistake:       	White=1     	---        Inaccurate:     	White=2     	Black=2      OK:         	White=20    	Black=21     Best:        	---       	Black=2} 1/2-1/2

[Event "Spring NYC Norms GM-A 2025"]
[Site "New York"]
[Date "2025.03.30"]
[Round "6.4"]
[White "Putnam, Liam"]
[Black "Adewumi, Tanitoluwa"]
[Result "*"]
[Annotator "RC"]
[ECO "C72"]
[WhiteElo "2411"]
[BlackElo "2362"]
[PlyCount "46"]
[EventDate "2025.03.26"]
[EventType "tourn"]
[EventCountry "USA"]
[SourceTitle "playchess.com"]
[Source "ChessBase"]
[SourceQuality "1"]
[TimeControl "5400+30"]

1. e4 {[%emt 1:31:00]} e5 {[%emt 0:00:01]} 2. Nf3 {[%emt 0:00:09]} Nc6 {[%emt 0:00:02]} 3. Bb5 {[%emt 0:00:09]} a6 {[%emt 0:00:03]} 4. Ba4 {[%emt 0:00:09]} d6 {[%emt 0:00:00]} 5. O-O {[%emt 0:00:00]} Bd7 {[%emt 0:00:00]} 6. c4 {[%emt 0:00:37]} Bg4 {[%emt 0:00:00]} 7. h3 {[%emt 0:00:16]} Bxf3 {[%emt 0:00:00]} 8. Qxf3 {[%emt 0:00:06]} Nf6 {[%emt 0:00:00]} 9. Qb3 {[%emt 0:00:22]} Qc8 {[%emt 0:01:35]} 10. Nc3 {[%emt 0:00:44]} Nd7 {[%emt 0:05:11]} 11. d3 {[%emt 0:00:18]} Be7 {[%emt 0:04:35]} 12. Nd5 {[%emt 0:00:19]} Nc5 {[%emt 0:00:47]} 13. Qd1 {[%emt 0:00:12]} Qd7 {[%emt 0:01:30]} 14. f4 {[%emt 0:00:51]} exf4 {[%emt 0:00:45]} 15. Bxf4 {[%emt 0:00:12]} O-O {[%emt 0:00:37]} 16. Be3 {[%emt 0:02:39]} Nxa4 {[%emt 0:05:48]} 17. Qxa4 {[%emt 0:00:07]} Rae8 {[%emt 0:00:02]} 18. Rad1 {[%emt 0:00:02]} Bd8 {[%emt 0:00:36]} 19. c5 {[%emt 0:00:02]} Be7 {[%emt 0:08:46]} 20. Rc1 {[%emt 0:01:55]} Rd8 {[%emt 0:03:11]} 21. Qb3 {[%emt 0:01:37]} Rb8 {[%emt 0:00:01]} 22. Qa4 {[%emt 0:10:02]} Rbd8 {[%emt 0:00:21]} 23. Bf4 {[%emt 0:02:03]} Kh8 {[%emt 0:03:03]} *

[Event "Spring NYC Norms GM-A 2025"]
[Site "New York"]
[Date "2025.03.30"]
[Round "6.5"]
[White "Paragua, Mark"]
[Black "Stearman, Josiah"]
[Result "1/2-1/2"]
[Annotator "RC"]
[ECO "B22"]
[WhiteElo "2439"]
[BlackElo "2441"]
[PlyCount "31"]
[EventDate "2025.03.26"]
[EventType "tourn"]
[EventCountry "USA"]
[SourceTitle "playchess.com"]
[Source "ChessBase"]
[SourceQuality "1"]
[TimeControl "5400+30"]

1. e4 {[%emt 0:17:08]} c5 {[%emt 0:00:22]} 2. Nf3 {[%emt 0:00:08]} e6 {[%emt 0:00:55]} 3. c3 {[%emt 0:00:32]} Nf6 {[%emt 0:01:33]} 4. e5 {[%emt 0:00:39]} Nd5 {[%emt 0:00:15]} 5. Bc4 {[%emt 0:00:30]} d6 {[%emt 0:05:13]} 6. d4 {[%emt 0:00:50]} cxd4 {[%emt 0:04:57]} 7. cxd4 {[%emt 0:00:09]} Be7 {[%emt 0:01:42]} 8. O-O {[%emt 0:00:40]} O-O {[%emt 0:00:09]} 9. Bd2 {[%emt 0:00:34]} b6 {[%emt 0:07:30]} 10. Nc3 {[%emt 0:01:15]} Nxc3 {[%emt 0:01:07]} 11. Bxc3 {[%emt 0:00:28]} Ba6 {[%emt 0:00:29]} 12. Bxa6 {[%emt 0:01:36]} Nxa6 {[%emt 0:00:10]} 13. d5 {[%emt 0:01:55]} exd5 {[%emt 0:04:52]} 14. Qxd5 {[%emt 0:00:34]} dxe5 {[%emt 0:00:14]} 15. Qxd8 {[%emt 0:01:40]} Rfxd8 {[%emt 0:00:10]} 16. Nxe5 {[%emt 0:00:07]} 1/2-1/2